[Event "67th Mexican-ch Open 2022"]
[Site "Chihuahua"]
[Date "2022.04.17"]
[Round "8.2"]
[White "Obregon Rivero, Juan Carlos"]
[Black "Quesada Perez, Luis Ernesto"]
[Result "0-1"]
[ECO "C45"]
[WhiteElo "2536"]
[BlackElo "2517"]
[Annotator "TA"]
[PlyCount "169"]
[EventDate "2022.04.12"]
[EventType "swiss"]
[EventCountry "MEX"]
[SourceTitle "playchess.com"]
[Source "ChessBase"]
[SourceQuality "1"]
[TimeControl "5400+30"]

{[%evp 31,169,-9,-13,-14,-14,-14,-20,-19,-10,-20,-12,-27,-9,-38,-16,-42,-41,-83,-71,-60,-45,-47,-51,-46,-42,-72,-52,-56,-63,-75,-50,-61,-40,-42,-41,-61,-61,-61,-60,-61,-61,-61,-41,-61,-47,-57,-8,-31,-31,-31,-31,-31,-31,-31,-20,-20,-20,-20,-20,-31,-31,-61,-61,-61,-61,-61,-61,-61,-61,-61,-61,-133,-133,-133,-133,-133,-133,-133,-133,-133,-110,-720,-79,-79,-78,-499,-133,-499,-499,-925,-480,-429,0,-390,-396,-377,-175,-316,-295,-300,-297,-257,-176,-6322,-5700,-5081,-4724,-2523,-4134,-2747,-1365,-5877,-5745,-4927,-5279,-2881,-1943,-29971,-29974,-29974,-29974,-29973,-29975,-29975,-29976,-29976,-29977,-29977,-29978,-29979,-29980,-29980,-29981,-29981,-29982,-29982,-29983,-29982,-29982,-29997]} 1. e4 {[%emt 0:00:02]} e5 {[%emt 0:01:26]} 2. Nf3 {[%emt 0:00:39]} Nc6 {[%emt 0:00:04]} 3. d4 {[%emt 0:00:28]} exd4 {[%emt 0:00:07]} 4. Nxd4 {[%emt 0:00:05]} Nf6 {[%emt 0:00:16]} 5. Nxc6 {[%emt 0:00:13]} bxc6 {[%emt 0:00:04]} 6. e5 {[%emt 0:00:12]} Qe7 {[%emt 0:00:10]} 7. Qe2 {[%emt 0:00:26]} Nd5 {[%emt 0:00:06]} 8. c4 {[%emt 0:01:04]} Nb6 {[%emt 0:00:29]} 9. Nd2 {[%emt 0:08:58]} Qe6 {[%emt 0:00:57]} 10. Qe4 {[%emt 0:08:41]} a5 {[%emt 0:06:46]} 11. Be2 {[%emt 0:04:57]} Bb4 {[%emt 0:01:06]} 12. a3 {[%emt 0:13:49]} Bxd2+ {[%emt 0:05:37]} 13. Bxd2 {[%emt 0:00:12]} Ba6 {[%emt 0:00:10]} 14. Bxa5 {[%emt 0:09:57]} Bxc4 {[%emt 0:00:33]} 15. Bxb6 {[%emt 0:02:49]} Bd5 {[%emt 0:00:32]} 16. Qe3 {[%emt 0:04:48]} cxb6 {[%emt 0:00:05]} 17. O-O {[%emt 0:01:27]} O-O {[%emt 0:01:38]} 18. Rfe1 {[%emt 0:00:34]} f6 {[%emt 0:01:34]} 19. Bd3 {[%emt 0:05:46]} Rae8 {[%emt 0:21:28]} 20. exf6 {[%emt 0:05:17]} (20. Qxb6 {with more complications.} Qg4 21. Bf1 fxe5 22. Qc5) 20... Qxf6 {[%emt 0:02:56]} 21. Qd2 {[%emt 0:00:01]} Bf7 {[%emt 0:16:58]} 22. Qc2 {[%emt 0:05:00]} g6 {[%emt 0:00:48]} 23. Rxe8 {[%emt 0:00:46]} Rxe8 {[%emt 0:00:14]} 24. Qc3 {[%emt 0:01:51]} Qxc3 {[%emt 0:07:11]} 25. bxc3 {[%emt 0:00:01]} b5 {[%emt 0:00:31]} 26. Kf1 {[%emt 0:02:55]} Bb3 {[%emt 0:11:12]} 27. Rb1 {[%emt 0:01:49]} Bd5 {[%emt 0:00:08]} 28. f3 {[%emt 0:03:26]} Kf7 {[%emt 0:02:41]} 29. Re1 {[%emt 0:00:53]} Ra8 {[%emt 0:00:21]} 30. Ra1 {[%emt 0:00:05]} Kf6 {[%emt 0:01:33]} 31. Ke2 {[%emt 0:00:38]} Ra4 {[%emt 0:03:04]} 32. g3 {[%emt 0:03:47]} h6 {[%emt 0:02:36]} 33. h4 {[%emt 0:00:12]} g5 {[%emt 0:02:37]} 34. hxg5+ {[%emt 0:00:02]} hxg5 {[%emt 0:00:01]} 35. Ke3 {[%emt 0:00:48]} Ke5 {[%emt 0:00:52]} 36. Be2 {[%emt 0:00:09]} Ra8 {[%emt 0:01:09]} 37. Kd2 {[%emt 0:03:00]} Be6 {[%emt 0:02:25]} 38. Bd1 {[%emt 0:01:41]} d5 {[%emt 0:00:20]} (38... Ra5 $15 {is more appropriate.}) 39. Bc2 {[%emt 0:01:06]} Rh8 {[%emt 0:03:17]} 40. f4+ {[%emt 0:02:04]} gxf4 {[%emt 0:00:02]} 41. Re1+ {[%emt 0:00:04]} Kf6 {[%emt 0:00:10]} 42. gxf4 {[%emt 0:00:18]} Rh4 {[%emt 0:01:10]} 43. a4 {[%emt 0:01:12]} bxa4 {[%emt 0:00:42]} 44. Bxa4 {[%emt 0:00:11]} c5 {[%emt 0:00:07]} 45. Rf1 {[%emt 0:04:16]} Rh2+ {[%emt 0:00:07]} 46. Kc1 {[%emt 0:01:47]} Ra2 {[%emt 0:00:18]} 47. Bd1 $1 {[%emt 0:00:22]} Bf5 {[%emt 0:00:31]} 48. Rh1 {[%emt 0:02:32]} Be4 {[%emt 0:01:43]} 49. Rh6+ {[%emt 0:02:22]} Kf5 {[%emt 0:00:06]} 50. Bb3 {[%emt 0:00:56]} Ra1+ {[%emt 0:00:15]} 51. Kb2 {[%emt 0:00:34]} (51. Kd2 $15) 51... Rb1+ $17 {[%emt 0:00:09]} 52. Ka2 {[%emt 0:00:22]} c4 {[%emt 0:00:38]} ({Of course not} 52... Kxf4 $6 53. Rh4+ (53. Bxd5 $2 Rh1 $19) 53... Kg5 54. Rxe4 Rxb3 55. Re5+ Kf4 56. Rxd5 Rxc3 57. Kb2 $11) 53. Ba4 {[%emt 0:00:21]} Rb8 {[%emt 0:00:50]} 54. Ka3 {[%emt 0:00:44]} Kxf4 {[%emt 0:00:08]} 55. Rh3 {[%emt 0:00:34]} Rb6 {[%emt 0:00:32]} 56. Be8 $2 {[%emt 0:00:34][%mdl 8192]} (56. Bd1 $17) 56... Bd3 $2 {[%emt 0:00:49]} (56... Bg2 $19 {has better winning chances.} 57. Rh4+ Kg3) 57. Bf7 $17 {[%emt 0:00:30]} Rb3+ {[%emt 0:01:07]} 58. Ka2 $2 {[%emt 0:00:27][%mdl 8192]} (58. Ka4 $17) 58... Bb1+ $19 {[%emt 0:00:45]} 59. Ka1 {[%emt 0:00:07]} Be4 {[%emt 0:00:08]} 60. Ka2 {[%emt 0:00:35]} (60. Rh5 $142 Bf3 61. Rxd5 Bxd5 62. Bxd5 Ra3+ 63. Kb1) 60... Rb7 {[%emt 0:00:52]} 61. Be8 {[%emt 0:00:34]} Rb6 $2 {[%emt 0:01:36]} (61... Ra7+ $19 62. Kb2 Rb7+ 63. Ka2 Ra7+ 64. Kb2 Kg4) 62. Bf7 $2 {[%emt 0:00:21][%mdl 8192]} (62. Ka3 $1 $11) 62... Rf6 $19 {[%emt 0:00:07]} 63. Be8 {[%emt 0:00:21]} Bf5 {[%emt 0:03:21]} (63... Re6 $142 64. Bb5 Rb6) 64. Rh1 {[%emt 0:00:34]} (64. Rh4+ $142 Ke3 65. Rd4) 64... Ke3 {[%emt 0:00:11]} 65. Ka3 {[%emt 0:00:44]} Rb6 {[%emt 0:00:20]} 66. Bf7 {[%emt 0:00:42]} Be4 {[%emt 0:00:10]} 67. Rd1 $2 {[%emt 0:00:41]} (67. Rh5) 67... Rb3+ $19 {[%emt 0:00:11]} 68. Ka2 {[%emt 0:00:18]} Bf3 {[%emt 0:01:23]} 69. Re1+ {[%emt 0:00:22]} Kd2 {[%emt 0:02:30]} 70. Re5 {[%emt 0:00:49]} Rb7 {[%emt 0:00:00]} 71. Bg8 {[%emt 0:00:26]} Kc2 {[%emt 0:00:10]} 72. Ka3 {[%emt 0:00:20]} Rb3+ {[%emt 0:00:11]} 73. Ka4 {[%emt 0:00:37]} Rxc3 {[%emt 0:00:27]} 74. Bxd5 {[%emt 0:00:30]} Bxd5 {[%emt 0:00:06]} 75. Rxd5 {[%emt 0:00:09]} Rd3 {[%emt 0:00:27]} 76. Rh5 {[%emt 0:00:32]} c3 {[%emt 0:00:39]} 77. Ka3 {[%emt 0:00:36]} Kc1 $1 {[%emt 0:00:09]} (77... Kd1 78. Rh1+ Kc2 79. Ka2 $11) 78. Rh1+ {[%emt 0:00:33] [#]} Rd1 $1 {[%emt 0:00:07]} 79. Rh2 {[%emt 0:00:51]} c2 {[%emt 0:00:11]} 80. Ka2 {[%emt 0:00:26]} Rd8 {[%emt 0:00:13]} 81. Rh1+ {[%emt 0:00:20]} Kd2 {[%emt 0:00:06]} 82. Rh2+ {[%emt 0:00:43]} Kc3 {[%emt 0:00:06]} 83. Rh3+ {[%emt 0:00:16] [#]} Rd3 $1 {[%emt 0:00:07]} 84. Rh1 {[%emt 0:00:44]} Rd1 {[%emt 0:00:08]} 85. Rh4 {[%emt 0:00:27]} 0-1

[Event "67th Mexican-ch Open 2022"]
[Site "Chihuahua"]
[Date "2022.04.17"]
[Round "8.3"]
[White "Cori Quispe, Kevin Joel"]
[Black "Gonzalez Zamora, Juan Carlos"]
[Result "1-0"]
[ECO "B06"]
[WhiteElo "2492"]
[BlackElo "2544"]
[Annotator "TA"]
[PlyCount "51"]
[EventDate "2022.04.12"]
[EventType "swiss"]
[EventCountry "MEX"]
[SourceTitle "playchess.com"]
[Source "ChessBase"]
[SourceQuality "1"]
[TimeControl "5400+30"]

{[%evp 12,51,75,76,94,92,160,132,168,92,279,266,301,267,615,585,584,581,575,570,573,286,881,894,310,847,855,842,864,827,761,857,868,866,864,839,743,803,29978,29979,3039,1275]} 1. e4 {[%emt 0:01:54]} g6 {[%emt 0:02:06]} 2. d4 {[%emt 0:00:10]} Bg7 {[%emt 0:00:03]} 3. Nc3 {[%emt 0:00:13]} c6 {[%emt 0:00:15]} 4. f4 {[%emt 0:01:20]} d6 {[%emt 0:02:03]} 5. Nf3 {[%emt 0:00:21]} Bg4 {[%emt 0:04:08]} 6. Be3 {[%emt 0:01:13]} Qb6 {[%emt 0:07:46]} 7. Qd2 {[%emt 0:02:36]} d5 {[%emt 0:01:55] B06: Modern Defence.} 8. Ne5 {[%emt 0:05:49]} Be6 {[%emt 0:01:19] [#]} (8... Bxe5 $2 9. dxe5 (9. Na4 Qc7 $16) 9... Qd8 10. exd5 $18) ({Black should play} 8... Nf6) 9. Bd3 $146 {[%emt 0:05:09] &Bianco is more active.} ({Predecessor:} 9. Na4 Qc7 10. Nc5 Nd7 11. Nxe6 fxe6 12. Nxd7 Kxd7 13. e5 Nh6 14. Be2 Nf5 15. g4 Nxe3 16. Qxe3 Qa5+ 17. c3 {1-0 (17) Stenius,M (1800)-Griffin,B (1800) ICCF email 2008}) 9... Nf6 {[%emt 0:03:00] White is clearly better.} 10. O-O-O {[%emt 0:04:36]} (10. f5 $18 Bc8 11. O-O-O) 10... Qa5 {[%emt 0:03:31] Prevents Na4. This move loses the game for Black.} (10... Ng4 $16) 11. f5 $18 {[%emt 0:05:16]} Bc8 {[%emt 0:00:43]} 12. Bh6 {[%emt 0:05:33]} O-O {[%emt 0:00:06]} (12... Bf8 13. exd5 Nxd5) 13. Bxg7 {[%emt 0:02:57]} Kxg7 {[%emt 0:00:05]} 14. h4 {[%emt 0:00:27][%cal Oh4h5] Threatens to win with h5!} h6 {[%emt 0:09:25]} 15. fxg6 {[%emt 0:06:15]} dxe4 {[%emt 0:01:17] [#]} 16. Nxe4 {[%emt 0:00:10]} (16. Nxf7 $142 $1 Rxf7 (16... Ng4 17. Qe2) 17. gxf7) 16... Qxa2 $2 {[%emt 0:04:57]} (16... Qxd2+ 17. Nxd2 c5) 17. Nc3 {[%emt 0:00:07]} Qa1+ {[%emt 0:00:44]} 18. Nb1 {[%emt 0:00:05] Dancing on a razor blade.} Be6 {[%emt 0:00:00]} 19. gxf7 {[%emt 0:00:21][%cal Oh1h3] aiming for Rh3!} Nbd7 {[%emt 0:03:52]} 20. Qf4 {[%emt 0:03:27] Qg3+ is the strong threat.} Rxf7 {[%emt 0:02:45]} 21. Nxf7 {[%emt 0:00:41]} Kxf7 {[%emt 0:01:18]} 22. Rde1 {[%emt 0:06:29][%cal Oe1e6]} Ba2 {[%emt 0:06:53]} 23. c3 {[%emt 0:03:09] And now Rhf1 would win.} Rg8 {[%emt 0:06:04]} 24. Re2 {[%emt 0:01:03]} Nb6 {[%emt 0:09:20]} 25. Qe5 {[%emt 0:01:03][%csl Ge2][%cal Re5e7]} Nbd5 {[%emt 0:06:22]} 26. c4 {[%emt 0:01:54] Weighted Error Value: White=0.25 (precise) /Black=1.23} (26. Rf1 $142 Kg7 {[#]} 27. Rxf6 $1 {[%mdl 512]} exf6 28. Qf5 Qxb1+ 29. Bxb1 Bxb1 30. Kxb1) 1-0

[Event "67th Mexican-ch Open 2022"]
[Site "Chihuahua"]
[Date "2022.04.17"]
[Round "8.4"]
[White "Hernandez Guerrero, Gilberto"]
[Black "Torres Rosas, Luis Carlos"]
[Result "1-0"]
[ECO "C00"]
[WhiteElo "2564"]
[BlackElo "2356"]
[Annotator "TA"]
[PlyCount "69"]
[EventDate "2022.04.12"]
[EventType "swiss"]
[EventCountry "MEX"]
[SourceTitle "playchess.com"]
[Source "ChessBase"]
[SourceQuality "1"]
[TimeControl "5400+30"]

{[%evp 15,69,-12,3,0,9,0,2,-14,-3,-16,-22,-14,-8,-18,-5,-16,81,0,0,0,2,0,17,1,41,39,88,97,99,95,60,60,102,113,130,110,121,110,135,143,141,148,146,131,484,470,456,459,594,594,793,745,29981,29982,29976,29968]} 1. e4 {[%emt 0:00:09]} e6 {[%emt 0:00:24]} 2. d3 {[%emt 0:01:21]} d5 {[%emt 0:01:08]} 3. Qe2 {[%emt 0:00:15]} Be7 {[%emt 0:00:13]} 4. Nf3 {[%emt 0:00:18]} Nf6 {[%emt 0:03:31]} 5. g3 {[%emt 0:00:38]} c5 {[%emt 0:02:25]} 6. Bg2 {[%emt 0:00:36]} Nc6 {[%emt 0:00:29]} 7. O-O {[%emt 0:00:32]} O-O {[%emt 0:00:05]} 8. e5 {[%emt 0:01:31]} Ne8 {[%emt 0:00:14]} 9. h4 {[%emt 0:03:12] has lost popularity (9.c4). C00: French: Unusual White 2nd moves.} b5 {[%emt 0:01:32]} 10. Bf4 {[%emt 0:01:31]} a5 {[%emt 0:00:34][%cal Ba7a5,Ba5a4,Ba4a3][%mdl 32]} 11. Nbd2 {[%emt 0:01:54] The position is equal.} a4 {[%emt 0:00:09]} 12. c3 {[%emt 0:04:02] [#]} a3 $146 {[%emt 0:24:27]} ({Predecessor:} 12... Ba6 13. Rfd1 Nc7 14. Bg5 Re8 15. Nf1 h6 16. Bf4 f5 17. exf6 Bxf6 18. Ne5 Bxe5 19. Bxe5 {½-½ (52) Abergel,T (2365)-Brodsky,M (2550) Cappelle la Grande 2003}) 13. b3 {[%emt 0:00:44]} Nc7 {[%emt 0:00:45]} 14. Rac1 {[%emt 0:04:11]} Ba6 {[%emt 0:11:42]} 15. Rfd1 {[%emt 0:00:49]} c4 {[%emt 0:12:03]} (15... b4 $11) 16. dxc4 {[%emt 0:16:11]} (16. bxc4 $6 bxc4 17. dxc4 Na5 $11) (16. Ne1 $16) 16... bxc4 $11 {[%emt 0:00:06]} 17. Qe3 {[%emt 0:00:15][%cal Od2c4]} ({But not} 17. Nxc4 Qc8 18. Ng5 dxc4 19. bxc4 (19. Bxc6 $2 cxb3 20. c4 b2 $17) 19... Bxg5 20. Bxg5 Bb7 $17) 17... cxb3 {[%emt 0:02:59]} 18. Nxb3 {[%emt 0:00:13]} Bc4 {[%emt 0:02:04]} 19. Nfd2 {[%emt 0:03:24]} Bxb3 {[%emt 0:00:37]} 20. Nxb3 {[%emt 0:01:17]} Na5 {[%emt 0:00:11] [#]} (20... Qd7 $14 {was preferrable.}) 21. c4 $1 $16 {[%emt 0:08:56]} Nxb3 {[%emt 0:02:41]} 22. Qxb3 {[%emt 0:00:09][%cal Rc4d5]} Rb8 {[%emt 0:05:40]} 23. Qa4 {[%emt 0:01:31]} Rb6 {[%emt 0:09:52]} 24. Be3 {[%emt 0:01:34]} Ra6 {[%emt 0:02:49]} 25. Qb3 {[%emt 0:07:23][%cal Rg2d5] Strongly threatening Bxd5! &Bianco is more active.} Qb8 {[%emt 0:07:16]} 26. Qd3 {[%emt 0:00:27][%cal Rc4d5]} ({Stronger than} 26. cxd5 Qxb3 27. axb3 Nxd5 28. Bxd5 exd5 $15) 26... Ra4 {[%emt 0:04:39]} 27. cxd5 {[%emt 0:00:41]} Nxd5 {[%emt 0:00:37]} 28. Bxd5 {[%emt 0:00:10]} exd5 {[%emt 0:00:44]} 29. Qxd5 {[%emt 0:00:12] aiming for Qd7.} Rd8 {[%emt 0:02:08][%mdl 8192] [#] Inhibits Qd7. This costs Black the game.} (29... Ra6 $16 30. Qe4 Qb2) 30. Qc6 $1 $18 {[%emt 0:00:53]} Rxd1+ {[%emt 0:01:06]} 31. Rxd1 {[%emt 0:00:07][%cal Bc1d1,Bd1d7,Bd7d8][%mdl 32]} Rb4 {[%emt 0:00:02]} 32. Rd7 {[%emt 0:02:57]} Rb1+ {[%emt 0:01:04]} 33. Kh2 {[%emt 0:00:31]} Qxe5 {[%emt 0:00:14]} 34. Qc8+ {[%emt 0:00:36]} Bf8 {[%emt 0:00:05]} 35. Rd8 {[%emt 0:38:50] Weighted Error Value: White=0.07 (flawless) /Black=0.72} 1-0

[Event "67th Mexican-ch Open 2022"]
[Site "Chihuahua"]
[Date "2022.04.17"]
[Round "8.5"]
[White "Garcia Guerrero, Isaac Antonio"]
[Black "Cordova, Emilio"]
[Result "0-1"]
[ECO "A40"]
[WhiteElo "2338"]
[BlackElo "2534"]
[Annotator "TA"]
[PlyCount "50"]
[EventDate "2022.04.12"]
[EventType "swiss"]
[EventCountry "MEX"]
[SourceTitle "playchess.com"]
[Source "ChessBase"]
[SourceQuality "1"]
[TimeControl "5400+30"]

{[%evp 9,50,0,5,0,27,0,0,-15,-17,-16,-8,-17,0,-39,-37,-30,-36,-23,-45,-32,-27,-24,-41,-83,-79,-77,-79,-76,-84,-156,-145,-243,-237,-232,-220,-222,-253,-699,-555,-674,-642,-616,-612]} 1. d4 {[%emt 0:00:04]} e6 {[%emt 0:00:34]} 2. c4 {[%emt 0:00:56]} b6 {[%emt 0:00:43]} 3. e4 {[%emt 0:01:14]} Bb7 {[%emt 0:00:29]} 4. f3 {[%emt 0:01:25]} f5 {[%emt 0:03:57]} 5. exf5 {[%emt 0:04:04]} Nh6 {[%emt 0:02:29]} 6. fxe6 {[%emt 0:04:34] A40: Unusual replies to 1 d4.} Nf5 {[%emt 0:00:50]} 7. exd7+ {[%emt 0:01:39]} (7. Bf4 $5 {[%cal Re6d7]}) 7... Nxd7 {[%emt 0:00:09]} 8. Nc3 {[%emt 0:01:03] The position is equal.} Bb4 {[%emt 0:17:01] [#]} 9. Bd3 $146 {[%emt 0:06:53]} (9. Qe2+ Kf7 10. Qd3 (10. d5 $2 Re8 $19) 10... Qh4+ 11. Kd1 Nxd4 $15) ({Predecessor:} 9. Nge2 O-O 10. Bf4 g5 11. Bd2 Bxf3 12. gxf3 Nh4 13. Ng1 Re8+ 14. Kf2 Ne5 15. Be3 Ng4+ 16. fxg4 {0-1 (40) Tarasova,V (2226)-Rozman,L (2343) Chess.com INT 2020}) 9... Qh4+ {[%emt 0:01:42]} 10. Kf1 {[%emt 0:01:53]} O-O {[%emt 0:00:45]} 11. a3 {[%emt 0:01:49]} Bxc3 {[%emt 0:07:11]} 12. bxc3 {[%emt 0:01:27]} Rae8 {[%emt 0:00:14]} 13. Ra2 $1 {[%emt 0:08:45]} Ne3+ $1 {[%emt 0:08:13]} 14. Bxe3 {[%emt 0:00:41]} Rxe3 $40 {[%emt 0:00:06][%mdl 128] Black attacks.} 15. Rf2 $1 {[%emt 0:06:46]} (15. Re2 $2 Bxf3 $1 {[%mdl 512]} 16. Nxf3 Rfxf3+ 17. Kg1 (17. gxf3 Rxf3+ 18. Kg1 Qg5+ 19. Rg2 Qe3+) 17... Rxd3 $1 $19) 15... Nf6 {[%emt 0:01:48][%cal Of6g4][%mdl 1024] Hoping for ...Ng4! Black has compensation.} 16. g3 {[%emt 0:04:01]} Qh5 {[%emt 0:01:14] &Nero is more active.} 17. d5 {[%emt 0:02:40]} c6 {[%emt 0:04:08][%cal Bc7c6,Bc6c5][%mdl 32]} 18. Qd2 {[%emt 0:06:28]} Rfe8 {[%emt 0:01:47]} 19. d6 {[%emt 0:02:30] [#]} (19. Ne2 $142 cxd5 20. Nf4) 19... c5 $1 $17 {[%emt 0:00:35]} 20. d7 {[%emt 0:02:17]} ({Wrong is} 20. Be4 $2 R3xe4 21. d7 (21. fxe4 $2 Nxe4 22. Qe2 Qg6 $19) 21... Rd8 22. fxe4 Bxe4 $19) (20. Kg2 $17) 20... Nxd7 $19 {[%emt 0:02:03]} 21. Be4 {[%emt 0:05:07]} R3xe4 {[%emt 0:00:53]} 22. fxe4 {[%emt 0:00:22]} Nf6 {[%emt 0:01:34]} ({Worse is} 22... Bxe4 23. Qxd7 Bxh1 24. Re2 Rf8+ 25. Ke1 $17) 23. Qe2 {[%emt 0:01:56]} (23. Rxf6 gxf6 24. h3) 23... Qh6 {[%emt 0:01:18] Black is clearly winning.} 24. Qd2 {[%emt 0:02:07] Strongly threatening Qxh6.} Qxd2 {[%emt 0:02:25]} 25. Rxd2 {[%emt 0:00:17]} Bxe4 {[%emt 0:00:23] Weighted Error Value: White=0.44/Black=0.08 (flawless)} 0-1

[Event "67th Mexican-ch Open 2022"]
[Site "Chihuahua"]
[Date "2022.04.17"]
[Round "8.6"]
[White "Salinas Herrera, Pablo"]
[Black "Figueredo Losada, Leonel"]
[Result "1-0"]
[ECO "B07"]
[WhiteElo "2517"]
[BlackElo "2342"]
[Annotator "TA"]
[PlyCount "41"]
[EventDate "2022.04.12"]
[EventType "swiss"]
[EventCountry "MEX"]
[SourceTitle "playchess.com"]
[Source "ChessBase"]
[SourceQuality "1"]
[TimeControl "5400+30"]

{[%evp 14,41,7,7,39,47,45,27,70,39,76,86,83,45,76,46,125,111,116,119,208,205,234,202,217,208,387,372,479,473]} 1. d4 {[%emt 0:00:02]} Nf6 {[%emt 0:01:51]} 2. Nf3 {[%emt 0:00:05]} g6 {[%emt 0:00:12]} 3. Nbd2 {[%emt 0:02:58]} Bg7 {[%emt 0:02:27]} 4. e4 {[%emt 0:00:05]} d6 {[%emt 0:00:04]} 5. Bb5+ {[%emt 0:00:04]} c6 {[%emt 0:03:43]} 6. Bd3 {[%emt 0:00:05]} O-O {[%emt 0:00:10]} 7. O-O {[%emt 0:00:04]} c5 {[%emt 0:00:53]} 8. c3 {[%emt 0:09:02]} Nc6 {[%emt 0:08:27] B07: Pirc Defence: Miscellaneous Systems.} 9. d5 {[%emt 0:00:00]} Nb8 {[%emt 0:00:00]} 10. Re1 {[%emt 0:09:48]} Na6 {[%emt 0:08:07] [#] White has an edge.} 11. Bf1 $146 {[%emt 0:05:18]} ({Predecessor:} 11. b3 Nc7 12. Bb2 b5 13. Qc2 Rb8 14. c4 a6 15. Rad1 bxc4 16. Bxc4 Bd7 17. e5 Nfxd5 18. exd6 exd6 19. Bxg7 Kxg7 {0-1 (48) Heedt,T (2190)-Joksic,S (2335) Biel 1998}) 11... e6 {[%emt 0:12:04]} 12. dxe6 {[%emt 0:06:35]} Bxe6 {[%emt 0:00:07]} 13. Ng5 {[%emt 0:00:56]} Bg4 {[%emt 0:02:21]} 14. Qb3 {[%emt 0:00:33]} (14. f3 $5 {[%cal Rf3g4]} Bc8 15. Nb3 $14) 14... Rb8 {[%emt 0:10:25]} (14... Qe7 $14) 15. h3 $16 {[%emt 0:01:33]} Bd7 {[%emt 0:03:16]} 16. Nc4 {[%emt 0:01:12] &Bianco is more active.} d5 {[%emt 0:07:01]} (16... Ne8 $16) 17. exd5 $18 {[%emt 0:01:19][%cal Be4d5,Bd5e6][%mdl 32]} h6 {[%emt 0:00:35] [#]} 18. Ne6 {[%emt 0:08:22][%mdl 512]} fxe6 {[%emt 0:03:40]} 19. dxe6 {[%emt 0:00:05] Threatens to win with e7.} Qe7 $2 {[%emt 0:05:02]} (19... Re8 {might work better.}) 20. Ne5 {[%emt 0:04:40]} c4 {[%emt 0:02:07]} (20... Bxe6 $2 21. Nxg6 Bxb3 22. Nxe7+ Kh7 23. Bd3+ Kh8 24. Ng6+ Kg8 25. Nxf8 $18) 21. Bxc4 {[%emt 0:03:00] Weighted Error Value: White=0.11 (very precise) /Black=0.53} 1-0